bitfinex-derivatives/quotes_BTCF0:USTF0_20251103
["timestamp","ask_amount","ask_price","bid_price","bid_amount"]
[1762195053004,0.40505,107400.0,107390.0,0.57613601]
[1762195053204,0.50917331,107400.0,107390.0,0.57613601]
[1762195053505,0.40505,107400.0,107390.0,0.57613601]
[1762195053705,0.60229741,107400.0,107390.0,0.57613601]
[1762195054203,0.50917331,107400.0,107390.0,0.57613601]
[1762195054699,0.40505,107400.0,107390.0,0.57613601]
[1762195054906,0.3608,107400.0,107390.0,0.57613601]
[1762195055102,0.40577,107400.0,107390.0,0.57613601]
[1762195055812,0.4988942,107400.0,107390.0,0.57613601]
[1762195056004,0.60301751,107400.0,107390.0,0.57613601]
[1762195058513,0.60301751,107400.0,107390.0,0.4720127]
[1762195058714,0.60301751,107400.0,107390.0,0.57613601]
[1762195058909,0.50989331,107400.0,107390.0,0.57613601]
[1762195059214,0.60301751,107400.0,107390.0,0.57613601]
[1762195062315,0.60301751,107400.0,107390.0,0.4720127]
[1762195062614,0.71385082,107400.0,107390.0,0.4720129]
[1762195062814,0.71385082,107400.0,107390.0,0.1502929]
[1762195063114,0.70714082,107400.0,107390.0,0.37888]
[1762195063808,0.70714082,107400.0,107390.0,0.4720129]
[1762195064005,0.71385082,107400.0,107390.0,0.04385]
[1762195064206,0.1438116,107380.0,107370.0,0.18334321]
[1762195064411,0.71285822,107380.0,107370.0,0.13958677]
[1762195064612,0.71285822,107380.0,107370.0,0.15329677]
[1762195064812,0.60303491,107380.0,107370.0,0.15329677]
[1762195065121,0.4989116,107380.0,107370.0,0.15329677]
[1762195065415,0.60403491,107380.0,107370.0,0.15329677]
[1762195066615,0.96383491,107380.0,107370.0,0.15329677]
[1762195066804,0.96383491,107380.0,107370.0,0.22034321]
[1762195067918,0.76657,107380.0,107370.0,0.32446652]
[1762195068109,0.7442,107380.0,107370.0,0.32446652]
[1762195068504,0.0226,107380.0,107370.0,0.68526652]
[1762195068720,0.60865411,107400.0,107390.0,0.1381729]
[1762195068906,0.5045308,107400.0,107390.0,0.1381729]
[1762195069110,0.5045308,107400.0,107390.0,0.1518829]
[1762195069315,0.60865411,107400.0,107390.0,0.1518829]
[1762195070116,0.60194411,107400.0,107390.0,0.1518829]
[1762195071617,0.50881331,107400.0,107390.0,0.1518829]
[1762195071922,0.60193721,107400.0,107390.0,0.1518829]
[1762195073223,0.70606052,107400.0,107390.0,0.05875]
[1762195073523,0.71876052,107400.0,107390.0,0.04504]
[1762195073730,0.71876052,107400.0,107390.0,0.1381726]
[1762195074822,0.71876052,107400.0,107390.0,0.04504]
[1762195075020,0.71876052,107400.0,107380.0,0.4736041]
[1762195075021,0.1370226,107390.0,107380.0,0.4736041]
[1762195075221,0.60194591,107390.0,107380.0,0.4736041]
[1762195077618,0.60865591,107390.0,107380.0,0.04504]
[1762195077819,0.60865591,107390.0,107380.0,0.0231]
[1762195078123,0.1370313,107380.0,107370.0,0.54075641]
[1762195078327,0.60195461,107380.0,107370.0,0.54075641]
[1762195078715,0.60195461,107380.0,107370.0,0.64487972]
[1762195079422,0.60195461,107380.0,107370.0,0.64587972]
[1762195079620,0.40469,107380.0,107370.0,0.64587972]
[1762195079927,0.40469,107390.0,107380.0,0.1518913]
[1762195080115,0.40469,107390.0,107380.0,0.36013792]
[1762195080713,0.40469,107400.0,107390.0,0.1518826]
[1762195081023,0.04389,107400.0,107390.0,0.57772591]
[1762195081813,0.40469,107410.0,107400.0,0.151874]
[1762195082126,0.40469,107410.0,107400.0,0.26534095]
[1762195082320,0.40469,107410.0,107400.0,0.22826408]
[1762195082721,0.4978053,107410.0,107400.0,0.21892044]
[1762195083122,0.1370139,107400.0,107390.0,0.54164154]
[1762195083322,0.4978139,107400.0,107390.0,0.54164154]
[1762195083827,0.04389,107400.0,107390.0,0.54164154]
[1762195084016,0.3608,107400.0,107390.0,0.54164154]
[1762195084326,0.3608,107410.0,107400.0,0.1518739]
[1762195084518,0.3608,107410.0,107400.0,0.28197401]
[1762195084721,0.02251,107410.0,107400.0,0.28197401]
[1762195085123,0.3608,107420.0,107410.0,0.0931153]
[1762195085318,0.40469,107420.0,107410.0,0.4735853]
[1762195085518,0.40469,107420.0,107410.0,0.60368541]
[1762195085732,0.04389,107430.0,107420.0,0.1287566]
[1762195085928,0.04389,107430.0,107420.0,0.34900315]
[1762195086317,0.40469,107440.0,107430.0,0.1518479]
[1762195086625,0.04389,107440.0,107430.0,0.54061434]
[1762195087232,0.1369793,107440.0,107430.0,0.4735679]
[1762195087432,0.04389,107440.0,107430.0,0.4735679]
[1762195087825,0.04389,107440.0,107430.0,0.4829378]
[1762195088020,0.1369793,107440.0,107430.0,0.4735679]
[1762195088231,0.04389,107440.0,107430.0,0.4735679]
[1762195088720,0.02251,107440.0,107430.0,0.8343679]
[1762195088921,0.40769,107450.0,107440.0,0.1518393]
[1762195089325,0.04689,107450.0,107440.0,0.1518393]
[1762195091031,0.04889,107450.0,107440.0,0.1518393]
[1762195091323,0.1419706,107450.0,107440.0,0.1518393]
[1762195091719,0.1419706,107450.0,107440.0,0.05875]
[1762195091720,0.5027706,107450.0,107440.0,0.05875]
[1762195091923,0.5027706,107450.0,107440.0,0.1518393]
[1762195092825,0.1369793,107440.0,107430.0,0.05875]
[1762195093031,0.4977793,107440.0,107430.0,0.473488]
[1762195093423,0.4977793,107440.0,107430.0,0.05875]
[1762195093629,0.4977793,107440.0,107430.0,0.38039]
[1762195093826,0.4977793,107440.0,107430.0,0.473488]
[1762195094226,0.62887941,107440.0,107430.0,0.38039]
[1762195094429,0.62887941,107440.0,107430.0,0.473488]
[1762195095034,0.62887941,107440.0,107430.0,0.38039]
[1762195095231,0.4987793,107440.0,107430.0,0.38039]
[1762195096031,0.4987793,107440.0,107430.0,0.473488]
[1762195096239,0.5114793,107440.0,107430.0,0.36668]
[1762195096435,0.04296,107430.0,107420.0,0.05725]
[1762195096638,0.04296,107430.0,107410.0,0.1068228]
[1762195096639,0.54057011,107430.0,107410.0,0.1068228]
[1762195096936,0.54548011,107420.0,107410.0,0.04354]
[1762195097738,0.54548011,107420.0,107410.0,0.1376553]
[1762195098238,0.54548011,107420.0,107410.0,0.1366553]
[1762195098439,0.54548011,107420.0,107410.0,0.1376553]
[1762195098841,0.54548011,107420.0,107410.0,0.1366553]
[1762195099133,0.55480458,107420.0,107410.0,0.1366553]
[1762195099528,0.55480458,107420.0,107410.0,0.04354]
[1762195100133,0.55480458,107420.0,107410.0,0.1366553]
[1762195100842,0.55480458,107420.0,107410.0,0.1495053]
[1762195101042,0.54548011,107420.0,107410.0,0.1495053]
[1762195101248,0.41538,107420.0,107410.0,0.1495053]
[1762195103445,0.41538,107420.0,107410.0,0.05639]
[1762195103643,0.41538,107420.0,107410.0,0.04354]
[1762195103945,0.5084866,107420.0,107410.0,0.1366553]
[1762195104442,0.5084866,107420.0,107410.0,0.04354]
[1762195104739,0.5084866,107420.0,107410.0,0.1366553]
[1762195106341,0.5084866,107420.0,107410.0,0.04354]
[1762195106542,0.1417753,107410.0,107400.0,0.05725]
[1762195106742,0.148784,107400.0,107390.0,0.04354]
[1762195106937,0.509584,107400.0,107390.0,0.4582726]
[1762195107834,0.40376,107400.0,107390.0,0.4718726]
[1762195108437,0.496884,107400.0,107390.0,0.4718726]
[1762195112240,0.496884,107400.0,107390.0,0.1502726]
[1762195112745,0.496884,107400.0,107390.0,0.1366726]
[1762195112945,0.496884,107400.0,107380.0,0.1148013]
[1762195112946,0.05195,107390.0,107380.0,0.1148013]
[1762195113148,0.05686,107380.0,107370.0,9.667e-05]
[1762195113347,0.63573185,107380.0,107370.0,9.667e-05]
[1762195113949,0.64508624,107380.0,107370.0,9.667e-05]
[1762195114339,0.64508624,107380.0,107370.0,0.00109667]
[1762195114546,0.87792624,107380.0,107370.0,0.00109667]
[1762195114947,0.05084,107350.0,107340.0,0.0030742]
[1762195115247,1.31223185,107350.0,107340.0,0.0030742]
[1762195115746,1.54511185,107350.0,107340.0,0.0030742]
[1762195116047,1.54520506,107350.0,107340.0,4.2e-06]
[1762195116447,1.54620506,107350.0,107340.0,4.2e-06]
[1762195117750,1.32813321,107350.0,107340.0,4.2e-06]
[1762195117950,1.09525321,107350.0,107340.0,0.0931806]
[1762195118145,1.05017321,107350.0,107340.0,4.2e-06]
[1762195118341,1.07215321,107350.0,107340.0,0.0931805]
[1762195118543,1.09541321,107350.0,107340.0,0.0931805]
[1762195118843,1.05017321,107350.0,107340.0,4.2e-06]
[1762195119648,1.05017321,107350.0,107340.0,0.1148405]
[1762195120052,1.05017321,107350.0,107340.0,0.0931805]
[1762195120257,0.76793321,107350.0,107340.0,0.1500205]
[1762195120546,0.40713321,107350.0,107340.0,0.1500205]
[1762195120944,0.00109321,107350.0,107340.0,0.72889235]
[1762195121343,0.04633321,107350.0,107340.0,0.5108205]
[1762195122251,0.04533321,107350.0,107340.0,0.5118205]
[1762195122444,0.04533321,107350.0,107340.0,0.1510205]
[1762195125251,0.13850091,107350.0,107340.0,0.1510205]
[1762195125447,0.13850091,107350.0,107340.0,0.4730205]
[1762195126154,0.49930091,107350.0,107340.0,0.4730205]
[1762195128652,0.49930091,107350.0,107340.0,0.4720205]
[1762195129245,0.40613321,107350.0,107340.0,0.4720205]
[1762195129854,0.49930061,107350.0,107340.0,0.4720205]
[1762195130046,0.49930061,107350.0,107340.0,0.3788442]
[1762195130446,0.49930061,107350.0,107340.0,0.4720202]
[1762195135051,0.40613321,107350.0,107340.0,0.4720202]
[1762195135249,0.49930061,107350.0,107340.0,0.4720202]
[1762195136454,0.49930061,107350.0,107340.0,0.1500203]
[1762195136650,0.49930061,107350.0,107340.0,0.0568442]
[1762195136846,0.49930061,107350.0,107340.0,4.2e-06]
[1762195136847,0.67213246,107350.0,107340.0,4.2e-06]
[1762195137246,0.71642246,107350.0,107340.0,0.0931812]
[1762195137652,0.67213246,107350.0,107340.0,4.2e-06]
[1762195137854,0.67213246,107350.0,107340.0,0.0931812]
[1762195138047,0.71642246,107350.0,107340.0,0.1373012]
[1762195138249,0.49835061,107350.0,107340.0,0.1373012]
[1762195138556,0.49835061,107350.0,107340.0,0.1501012]
[1762195138753,0.82023061,107350.0,107340.0,0.1501012]
[1762195140362,0.49835061,107350.0,107340.0,0.1501012]
[1762195141154,0.69470121,107350.0,107340.0,4.2e-06]
[1762195141362,0.92758121,107350.0,107340.0,4.2e-06]
[1762195142160,0.93920121,107350.0,107340.0,4.2e-06]
[1762195144759,0.96419506,107350.0,107340.0,4.2e-06]
[1762195145162,0.93920121,107350.0,107340.0,4.2e-06]
[1762195145358,0.70632121,107350.0,107340.0,4.2e-06]
[1762195145559,0.93920121,107350.0,107340.0,4.2e-06]
[1762195145764,0.47662936,107350.0,107340.0,0.1501012]
[1762195146064,0.84279936,107350.0,107340.0,0.1501012]
[1762195146262,0.85441936,107350.0,107340.0,0.1501012]
[1762195146464,0.85441936,107350.0,107340.0,0.1373012]
[1762195146859,0.85441936,107350.0,107340.0,0.0441242]
[1762195147158,0.53253936,107350.0,107340.0,0.1373003]
[1762195147466,0.85441936,107350.0,107340.0,0.1373003]
[1762195147964,0.85441936,107350.0,107340.0,0.0441242]
[1762195148364,1.02820121,107350.0,107340.0,4.2e-06]
[1762195149467,1.02820121,107350.0,107340.0,0.0931803]
[1762195149665,1.02820121,107350.0,107340.0,0.1145103]
[1762195149862,1.02820121,107350.0,107340.0,0.0441242]
[1762195150164,1.02820121,107350.0,107340.0,0.1373003]
[1762195150761,0.85441936,107350.0,107340.0,0.1373003]
[1762195150958,1.07249121,107350.0,107340.0,0.1373003]
[1762195151668,0.85441936,107350.0,107340.0,0.1373003]
[1762195152969,0.85441936,107350.0,107340.0,0.0213342]
[1762195153169,0.85441936,107350.0,107340.0,0.0441242]
[1762195153373,0.85441936,107350.0,107340.0,0.1373003]
[1762195154265,0.85441936,107350.0,107340.0,0.1501003]
[1762195155168,0.84279936,107350.0,107340.0,0.1501003]
[1762195157071,0.84279936,107350.0,107340.0,0.0569242]
[1762195157266,0.52091936,107350.0,107340.0,0.0569242]
[1762195158673,0.53253936,107350.0,107340.0,0.1373003]
[1762195159168,0.53253936,107350.0,107340.0,0.1511503]
[1762195159673,0.52091936,107350.0,107340.0,0.1511503]
[1762195160374,0.49835061,107350.0,107340.0,0.1511503]
[1762195162275,0.42783848,107350.0,107340.0,0.1511503]
[1762195162869,0.40518321,107350.0,107340.0,0.1511503]
[1762195163174,0.49835061,107350.0,107340.0,0.1511503]
[1762195163580,0.52083024,107350.0,107340.0,0.1511503]
[1762195163987,0.53245024,107350.0,107340.0,0.0579742]
[1762195164385,0.65111,107350.0,107340.0,0.0579742]
[1762195164787,0.65111,107350.0,107340.0,0.1511503]
[1762195165285,0.49835061,107350.0,107340.0,0.1511503]
[1762195165879,0.40518321,107350.0,107340.0,0.1511503]
[1762195166277,0.49835071,107350.0,107340.0,0.1511503]
[1762195166982,0.6511138,107350.0,107340.0,0.0579742]
[1762195167178,0.6511138,107350.0,107340.0,0.1373003]
[1762195167683,0.6511138,107350.0,107340.0,0.1499503]
[1762195168488,0.42785654,107350.0,107340.0,0.1499503]
[1762195168688,0.49854061,107350.0,107340.0,0.1499503]
[1762195169688,0.40537321,107350.0,107340.0,0.1499503]
[1762195170484,0.49854061,107350.0,107340.0,0.1499503]
[1762195171580,0.40537321,107350.0,107340.0,0.1499503]
[1762195171975,0.04457321,107350.0,107340.0,0.28023006]
[1762195172187,0.04457321,107350.0,107340.0,0.21699674]
[1762195172584,0.40537321,107350.0,107340.0,0.21699674]
[1762195172786,0.40537321,107350.0,107340.0,0.53883674]
[1762195172989,0.49854061,107350.0,107340.0,0.53883674]
[1762195173388,0.49854051,107350.0,107340.0,0.53983674]
[1762195173689,0.49854051,107350.0,107340.0,0.21799674]
[1762195173877,0.49854051,107350.0,107340.0,0.53983674]
[1762195174281,0.40537321,107350.0,107340.0,0.53983674]
[1762195174884,0.49854061,107350.0,107340.0,0.53983674]
[1762195175285,0.36089321,107350.0,107340.0,0.6701165]
[1762195175483,0.04457321,107350.0,107340.0,0.60307006]
[1762195175694,0.04457321,107350.0,107340.0,0.4727903]
[1762195176086,0.04457321,107350.0,107340.0,0.53981305]
[1762195176386,0.04457321,107350.0,107340.0,0.57698019]
[1762195176890,0.04457321,107350.0,107340.0,0.64398258]
[1762195177389,0.1487631,107350.0,107340.0,0.64398258]
[1762195177592,0.6027305,107350.0,107340.0,0.12477659]
[1762195177795,0.71962039,107350.0,107340.0,0.0010042]
[1762195178094,0.71962039,107350.0,107340.0,0.1159703]
[1762195178287,0.6154305,107350.0,107340.0,0.1159703]
[1762195178690,0.71962039,107350.0,107340.0,0.1159703]
[1762195178890,0.6154305,107350.0,107340.0,0.1363203]
[1762195179090,0.6164305,107350.0,107340.0,0.1363203]
[1762195179291,0.6164305,107350.0,107340.0,0.0217942]
[1762195179493,0.69861332,107350.0,107340.0,4.2e-06]
[1762195180398,0.62054269,107350.0,107340.0,4.2e-06]
[1762195180595,0.62054269,107350.0,107340.0,0.0931803]
[1762195180901,0.66502269,107350.0,107340.0,0.1149703]
[1762195181192,0.66502269,107350.0,107340.0,0.1363203]
[1762195181397,0.64254976,107350.0,107340.0,0.1149714]
[1762195181599,0.64254976,107350.0,107340.0,0.0217942]
[1762195182000,0.59806976,107350.0,107340.0,4.2e-06]
[1762195183194,0.64254976,107350.0,107340.0,0.1363215]
[1762195185200,0.64254976,107350.0,107340.0,0.0431442]
[1762195185391,0.64254976,107350.0,107340.0,0.1363214]
[1762195186704,0.64254976,107350.0,107340.0,0.0431442]
[1762195187203,0.64254976,107350.0,107340.0,0.0217942]
[1762195187403,0.59806976,107350.0,107340.0,4.2e-06]
[1762195187798,0.62054593,107350.0,107340.0,4.2e-06]
[1762195188001,0.85342593,107350.0,107340.0,4.2e-06]
[1762195188399,1.17530593,107350.0,107340.0,4.2e-06]
[1762195189100,0.85342593,107350.0,107340.0,4.2e-06]
[1762195189302,1.17530593,107350.0,107340.0,4.2e-06]
[1762195191305,1.17530593,107350.0,107310.0,0.04603]
[1762195191306,0.1476846,107320.0,107310.0,0.04603]
[1762195191495,1.32155393,107320.0,107310.0,0.04603]
[1762195191895,1.32155393,107320.0,107310.0,0.1392333]
[1762195192405,1.32155393,107320.0,107310.0,0.04603]
[1762195192702,1.33100175,107320.0,107310.0,0.1412332]
[1762195193099,1.33100175,107320.0,107310.0,0.04803]
[1762195193409,1.33100175,107320.0,107310.0,0.1412316]
[1762195193709,1.33100175,107320.0,107310.0,0.04803]
[1762195194405,1.33100175,107320.0,107310.0,0.00392]
[1762195194702,0.1499612,107310.0,107300.0,0.00307535]
[1762195194910,0.64107035,107310.0,107300.0,0.00307535]
[1762195195800,0.64107035,107310.0,107300.0,0.00407535]
[1762195196001,0.64107035,107310.0,107300.0,0.02544535]
[1762195196199,0.64107035,107310.0,107300.0,0.04818535]
[1762195196400,0.64107035,107310.0,107300.0,0.14139515]
[1762195197298,0.64107035,107310.0,107300.0,0.04818535]
[1762195197808,0.64107035,107310.0,107300.0,0.14139515]
[1762195199304,0.64107035,107310.0,107300.0,0.11865515]
[1762195199699,0.64107035,107310.0,107300.0,0.14139515]
[1762195199900,0.64107035,107310.0,107300.0,0.09728515]
[1762195200210,0.64107035,107310.0,107300.0,0.00407535]
[1762195200813,0.87407035,107310.0,107300.0,0.00407535]
[1762195201198,0.64107035,107310.0,107300.0,0.00407535]
[1762195202213,0.87407035,107310.0,107300.0,0.00407535]
[1762195202613,0.1152472,107280.0,107270.0,0.1068056]
[1762195202909,0.1372958,107270.0,107260.0,0.06075649]
[1762195203113,0.4980958,107270.0,107260.0,0.15400099]
[1762195203510,0.40486,107270.0,107260.0,0.15400099]
[1762195203707,0.49821184,107270.0,107260.0,0.15400099]
[1762195204109,0.49821184,107270.0,107260.0,0.15700099]
[1762195204510,0.40497594,107270.0,107260.0,0.15700099]
[1762195204912,0.00011594,107270.0,107260.0,0.64811014]
[1762195205116,0.00011594,107270.0,107260.0,0.88119014]
[1762195205909,0.47372562,107300.0,107290.0,0.0932184]
[1762195206114,0.83974562,107300.0,107290.0,0.1145884]
[1762195206314,0.83974562,107300.0,107290.0,0.04411]
[1762195206514,0.50735562,107300.0,107290.0,0.1508983]
[1762195206913,0.50743965,107300.0,107290.0,0.05768]
[1762195207113,0.83043965,107300.0,107290.0,0.05768]
[1762195207313,0.51886965,107300.0,107290.0,0.05768]
[1762195207514,0.84086965,107300.0,107290.0,0.05768]
[1762195207812,0.9711788,107300.0,107290.0,0.05768]
[1762195208206,0.9711788,107300.0,107290.0,0.04411]
[1762195208817,0.9711788,107300.0,107280.0,0.01357]
[1762195209010,0.62838745,107290.0,107280.0,0.05768]
[1762195209720,0.62838745,107290.0,107280.0,0.150907]
[1762195210718,0.62838745,107290.0,107280.0,0.05768]
[1762195210920,0.62838745,107290.0,107280.0,0.1509071]
[1762195211221,0.62838745,107290.0,107280.0,0.04411]
[1762195212116,0.4980785,107290.0,107280.0,0.1509071]
[1762195217026,0.62838765,107290.0,107280.0,0.04411]
[1762195217326,0.1366658,107270.0,107260.0,0.05874649]
[1762195217521,0.988664,107270.0,107260.0,0.05874649]
[1762195217915,0.988664,107270.0,107260.0,0.15199099]
[1762195218926,0.988664,107270.0,107260.0,0.00307649]
[1762195219916,0.988664,107270.0,107260.0,0.00407649]
[1762195222931,0.988664,107270.0,107260.0,0.11840109]
[1762195224125,0.988664,107270.0,107260.0,0.02515649]
[1762195224332,0.988664,107270.0,107260.0,0.04617649]
[1762195224525,0.988664,107270.0,107260.0,0.15294109]
[1762195225730,0.988664,107270.0,107260.0,0.05969649]
[1762195226024,0.988664,107270.0,107260.0,0.15294159]
[1762195226530,0.85835485,107270.0,107260.0,0.05969649]
[1762195226731,0.85835485,107270.0,107260.0,0.15294159]
[1762195227333,0.85835485,107270.0,107260.0,0.05969649]
[1762195227831,0.85835485,107270.0,107260.0,0.15294209]
[1762195229631,0.85835485,107270.0,107260.0,0.05969649]
[1762195230134,1.07706224,107270.0,107260.0,0.05969649]
[1762195230332,1.07706224,107270.0,107260.0,0.15294209]
[1762195230736,0.85835485,107270.0,107260.0,0.05969649]
[1762195230937,1.07706224,107270.0,107260.0,0.04617649]
[1762195231329,1.09954839,107270.0,107260.0,0.00407649]
[1762195231732,1.09954839,107270.0,107260.0,0.02521649]
[1762195232036,1.09954839,107270.0,107260.0,0.04844649]
[1762195233738,1.07706224,107270.0,107260.0,0.04844649]
[1762195234239,1.07706224,107270.0,107260.0,0.14169319]
[1762195235147,1.07706224,107270.0,107260.0,0.04844649]
[1762195236446,0.1379554,107250.0,107240.0,0.1279229]
[1762195236652,0.4987554,107250.0,107240.0,0.1279229]
[1762195237354,0.8595554,107250.0,107240.0,0.1511529]
[1762195237653,0.8595554,107250.0,107240.0,0.1541529]
[1762195238247,1.07826279,107250.0,107240.0,0.06089]
[1762195238551,1.09096279,107250.0,107240.0,0.04737]
[1762195239652,1.09104929,107250.0,107240.0,0.02414]
[1762195240948,1.10058839,107250.0,107240.0,0.02414]
[1762195241153,1.10058839,107250.0,107240.0,0.003]
[1762195241457,0.881881,107250.0,107240.0,0.003]
[1762195241653,0.7759256,107250.0,107240.0,0.1538541]
[1762195241955,0.4055865,107250.0,107240.0,0.1538541]
[1762195242149,0.498842,107250.0,107240.0,0.1538541]
[1762195242554,0.4055865,107250.0,107240.0,0.1538541]
[1762195243355,0.4988419,107250.0,107240.0,0.1538541]
[1762195244357,0.4055865,107250.0,107240.0,0.1538541]
[1762195245457,0.4988419,107250.0,107240.0,0.1538541]
[1762195246157,0.4055865,107250.0,107240.0,0.1538541]
[1762195247148,0.498842,107250.0,107240.0,0.1538541]
[1762195247850,0.71754939,107250.0,107240.0,0.003]
[1762195248159,0.71754939,107250.0,107240.0,0.024]
[1762195248358,0.71754939,107250.0,107240.0,0.003]
[1762195248857,0.71754939,107250.0,107240.0,0.024]
[1762195249057,0.71754939,107250.0,107240.0,0.04516]
[1762195249448,0.71754939,107250.0,107240.0,0.04216]
[1762195249654,0.71754939,107250.0,107240.0,0.04316]
[1762195250149,0.71754939,107250.0,107240.0,0.001]
[1762195250350,0.70775338,107250.0,107240.0,0.001]
[1762195252151,0.73021947,107250.0,107240.0,0.0942641]
[1762195252659,0.62576378,107250.0,107240.0,0.0942641]
[1762195252855,0.62576378,107250.0,107240.0,0.001]
[1762195253060,0.73021947,107250.0,107240.0,0.0942641]
[1762195253657,0.73021947,107250.0,107240.0,0.001]
[1762195255459,0.73021947,107250.0,107240.0,0.0942641]
[1762195255659,0.73021947,107250.0,107240.0,0.001]
[1762195257757,0.70775338,107250.0,107240.0,0.001]
[1762195258256,0.73024356,107250.0,107240.0,0.022]
[1762195258464,0.73024356,107250.0,107240.0,0.001]
[1762195259262,0.73024356,107250.0,107240.0,0.022]
[1762195259462,0.73024356,107250.0,107240.0,0.001]
[1762195261472,0.73024356,107250.0,107240.0,0.04316]
[1762195261967,1.05236356,107250.0,107240.0,0.001]
[1762195262166,1.02987338,107250.0,107240.0,0.001]
[1762195262359,1.05237934,107250.0,107240.0,0.001]
[1762195263562,0.1390229,107230.0,107220.0,0.15183742]
[1762195263769,0.60427859,107230.0,107220.0,0.15183742]
[1762195265172,0.60427859,107230.0,107220.0,0.15383742]
[1762195265665,0.97143859,107230.0,107220.0,0.00518172]
[1762195265973,0.1390403,107210.0,107200.0,0.05551]
[1762195266272,0.87180569,107210.0,107200.0,0.148809]
[1762195266665,0.96509599,107210.0,107200.0,0.148809]
[1762195266862,0.87180569,107210.0,107200.0,0.148809]
[1762195267372,0.96509599,107210.0,107200.0,0.150809]
[1762195267568,1.28725599,107210.0,107200.0,0.002]
[1762195267962,1.19396569,107210.0,107200.0,0.04416]
[1762195268167,0.87180569,107210.0,107200.0,0.150809]
[1762195268370,0.96509599,107210.0,107200.0,0.150809]
[1762195269366,0.97463919,107210.0,107200.0,0.04416]
[1762195270174,0.139049,107200.0,107190.0,0.05551]
[1762195270375,0.60439487,107200.0,107190.0,0.05551]
[1762195270575,0.04575,107190.0,107180.0,0.03742879]
[1762195270871,0.71512908,107190.0,107180.0,0.00307879]
[1762195271462,0.62182138,107190.0,107180.0,0.05858879]
[1762195271668,0.51100569,107190.0,107180.0,0.15190519]
[1762195272267,0.60431339,107190.0,107180.0,0.15190519]
[1762195272471,0.60431339,107190.0,107180.0,0.05858879]
[1762195272672,0.70876908,107190.0,107180.0,0.05858879]
[1762195273170,0.71512908,107190.0,107180.0,0.00507879]
[1762195273370,0.5062177,107190.0,107180.0,0.00507879]
[1762195273575,0.71512908,107190.0,107180.0,0.00507879]
[1762195273771,0.1390751,107170.0,107160.0,0.05551]
[1762195273971,0.96519681,107170.0,107160.0,0.05551]
[1762195274771,0.87187171,107170.0,107160.0,0.1488439]
[1762195274974,0.72166602,107170.0,107160.0,0.1488439]
[1762195275169,0.85921122,107170.0,107150.0,0.01344715]
[1762195275385,0.40508602,107170.0,107160.0,0.1521939]
[1762195275581,0.76588602,107170.0,107160.0,0.1521939]
[1762195276375,0.87034171,107170.0,107160.0,0.1541939]
[1762195276573,0.76588602,107170.0,107160.0,0.1541939]
[1762195276975,0.87034171,107170.0,107160.0,0.1541939]
[1762195278184,0.87034171,107170.0,107160.0,0.1541938]
[1762195278375,0.87034171,107170.0,107160.0,0.06086]
[1762195279583,0.87034171,107170.0,107160.0,0.1541938]
[1762195279783,0.87034171,107170.0,107160.0,0.06086]
[1762195280082,0.87034171,107170.0,107160.0,0.1541938]
[1762195280285,0.76588602,107170.0,107160.0,0.1541938]
[1762195280785,0.87034171,107170.0,107160.0,0.06086]
[1762195281281,0.87034171,107170.0,107160.0,0.002]
[1762195282274,0.87034171,107170.0,107160.0,0.0953338]
[1762195282480,0.87967801,107170.0,107160.0,0.002]
[1762195282680,0.87967801,107170.0,107160.0,0.1407538]
[1762195282877,1.0774588,107170.0,107160.0,0.002]
[1762195283184,1.3107388,107170.0,107160.0,0.002]
[1762195283383,0.97300311,107170.0,107160.0,0.002]
[1762195283788,1.0774588,107170.0,107160.0,0.002]
[1762195285185,0.1439138,107160.0,107150.0,9.715e-05]
[1762195285374,0.1439225,107150.0,107140.0,0.00307994]
[1762195285574,0.04422,107130.0,107120.0,0.05886]
[1762195285883,0.04422,107130.0,107120.0,0.16554086]
[1762195285884,0.76582,107130.0,107120.0,0.16554086]
[1762195286079,0.76582,107130.0,107120.0,0.1522286]
[1762195286484,0.74364868,107130.0,107120.0,0.1522286]
[1762195286981,0.76590868,107130.0,107120.0,0.1542286]
[1762195287987,0.76590868,107130.0,107120.0,0.07442209]
[1762195287988,0.89669344,107130.0,107120.0,0.07442209]
[1762195288290,0.85926858,107130.0,107120.0,0.07442209]
[1762195288681,0.99205334,107130.0,107120.0,0.07241098]
[1762195289883,0.99205334,107130.0,107120.0,0.03556098]
[1762195290084,0.99205334,107130.0,107120.0,0.07164098]
[1762195290085,1.31477334,107130.0,107120.0,0.07164098]
[1762195290285,0.89869344,107130.0,107120.0,0.16500968]
[1762195290484,0.1360888,107120.0,107110.0,0.05843]
[1762195290679,0.62767356,107120.0,107110.0,0.07172865]
[1762195291078,0.63690156,107120.0,107110.0,0.07172865]
[1762195291287,0.62767356,107120.0,107110.0,0.07172865]
[1762195291480,0.62767356,107120.0,107110.0,0.16510605]
[1762195291679,0.40352,107120.0,107110.0,0.16510605]
[1762195291876,0.40352,107120.0,107110.0,0.4754474]
[1762195293593,0.4968887,107120.0,107110.0,0.4754474]
[1762195294476,0.3818,107120.0,107110.0,0.4754474]
[1762195294683,0.38188868,107130.0,107120.0,0.1516987]
[1762195294984,0.40360868,107130.0,107120.0,0.1516987]
[1762195295479,0.36088868,107130.0,107120.0,0.1516987]
[1762195295784,0.3608,107140.0,107130.0,0.15169]
[1762195295990,0.3608,107140.0,107130.0,0.60611476]
[1762195296193,0.3818,107140.0,107130.0,0.47533]
[1762195296389,0.021,107140.0,107130.0,0.48452547]
[1762195296790,0.40352,107150.0,107140.0,0.1516813]
[1762195296985,7.294e-05,107150.0,107140.0,0.28246606]
[1762195297190,7.294e-05,107150.0,107140.0,0.51578606]
[1762195298884,0.00307294,107150.0,107140.0,0.87758606]
[1762195300494,0.41929294,107150.0,107140.0,0.001]
[1762195300690,0.6434203,107150.0,107140.0,0.001]
[1762195302602,0.65295809,107150.0,107140.0,0.001]
[1762195303192,0.49993554,107150.0,107140.0,0.05933]
[1762195303391,0.6307203,107150.0,107140.0,0.05933]
[1762195303992,0.49993554,107150.0,107140.0,0.1526813]
[1762195306088,0.9675403,107150.0,107140.0,0.001]
[1762195306285,1.22326188,107150.0,107140.0,0.001]
[1762195307093,0.98994188,107150.0,107140.0,0.001]
[1762195308589,0.02209,107110.0,107090.0,0.06700239]
[1762195308793,0.04332,107090.0,107080.0,0.00010276]
[1762195308993,0.53830419,107090.0,107080.0,0.01378669]
[1762195309194,0.52883077,107090.0,107080.0,0.01378669]
[1762195309586,0.52883077,107090.0,107080.0,0.00010276]
[1762195310897,0.53483077,107090.0,107080.0,0.00110276]
[1762195311193,0.03684,107070.0,107060.0,0.00308224]
[1762195311497,0.7216,107070.0,107050.0,0.0934275]
[1762195311697,0.52842476,107060.0,107050.0,0.04406]
[1762195311996,0.39764,107060.0,107050.0,0.1374898]
[1762195312197,0.01842,107030.0,107020.0,0.01655339]
[1762195312494,0.39775617,107030.0,107020.0,0.06061339]
[1762195313690,0.52854093,107030.0,107020.0,0.06061339]